Workbook

Sheet 市规划自然资源局
A1: 重庆市规划和自然资源局所属事业单位 2023年第二季度公开招聘进入面试资格复审人员名单
A2: 考试时间：2023年5月7日
A3: 报考单位及职位 | B3: 姓名 | C3: 准考证号 | D3: 职业能力倾向测验成绩 | E3: 综合应用能力成绩 | F3: 专业加试成绩 | G3: 总成绩 | H3: 折算后成绩 | I3: 排名
A4: 长寿区不动产档案馆信息技术 | B4: 吴春燕 | C4: 2150900600707 | D4: 97.5 | E4: 110 | G4: 207.5 | H4: =ROUND((D4+E4)/3*0.5,2) -> 34.58 | I4: 1
A5: 长寿区不动产档案馆信息技术 | B5: 杜琳 | C5: 2150901102122 | D5: 107 | E5: 99.5 | G5: 206.5 | H5: 34.42 | I5: 2
A6: 长寿区不动产档案馆信息技术 | B6: 陈乾溢 | C6: 2150900601017 | D6: 103 | E6: 98 | G6: 201 | H6: 33.5 | I6: 3
A7: 长寿区城乡规划服务中心规划管理 | B7: 杜玉琴 | C7: 3150901109019 | D7: 94 | E7: 96.5 | F7: 62.5 | G7: 253 | H7: =ROUND(((D7+E7)/3*0.4+F7*0.2),2) -> 37.90 | I7: 1
A8: 长寿区城乡规划服务中心规划管理 | B8: 冉大林 | C8: 3150901109121 | D8: 117 | E8: 97.5 | F8: 45.5 | G8: 260 | H8: 37.70 | I8: 2
A9: 长寿区城乡规划服务中心规划管理 | B9: 陈宜爽 | C9: 3150901109104 | D9: 111.5 | E9: 98 | F9: 48 | G9: 257.5 | H9: 37.53 | I9: 3
A10: 长寿区矿产资源管理所（区地环站、八颗和江南服务中心)地质勘察 | B10: 李巍林 | C10: 3150901109414 | D10: 89.5 | E10: 101 | F10: 50 | G10: 240.5 | H10: 35.40 | I10: 1
A11: 长寿区矿产资源管理所（区地环站、八颗和江南服务中心)地质勘察 | B11: 季子武 | C11: 3150901109416 | D11: 86 | E11: 102.5 | F11: 45 | G11: 233.5 | H11: 34.13 | I11: 2
A12: 长寿区矿产资源管理所（区地环站、八颗和江南服务中心)地质勘察 | B12: 汪鑫 | C12: 3150901109401 | D12: 78 | E12: 98 | F12: 50 | G12: 226 | H12: 33.47 | I12: 3
A13: 长寿区土地房屋勘测规划院测绘管理 | B13: 夏豪 | C13: 3150901108402 | D13: 99.5 | E13: 99.5 | F13: 51.5 | G13: 250.5 | H13: 36.83 | I13: 1
A14: 长寿区土地房屋勘测规划院测绘管理 | B14: 高宇 | C14: 3150901108409 | D14: 99 | E14: 93.5 | F14: 53 | G14: 245.5 | H14: 36.27 | I14: 2
A15: 长寿区土地房屋勘测规划院测绘管理 | B15: 蔡金华 | C15: 3150901108408 | D15: 99 | E15: 97.5 | F15: 49.5 | G15: 246 | H15: 36.10 | I15: 3
A16: 大渡口不动产登记中心法务 | B16: 朱镜帆 | C16: 1150900300711 | D16: 120.5 | E16: 107.5 | G16: 228 | H16: =ROUND((D16+E16)/3*0.5,2) -> 38 | I16: 1
A17: 大渡口不动产登记中心法务 | B17: 王思新 | C17: 1150900202802 | D17: 122 | E17: 102.5 | G17: 224.5 | H17: =ROUND((D17+E17)/3*0.5,2) -> 37.42 | I17: 2
A18: 大渡口不动产登记中心法务 | B18: 蒋婉秋 | C18: 1150900202103 | D18: 115.5 | E18: 108.5 | G18: 224 | H18: 37.33 | I18: 3
A19: 大渡口不动产登记中心法务 | B19: 吕思璇 | C19: 1150900403912 | D19: 116.5 | E19: 104.5 | G19: 221 | H19: 36.83 | I19: 4
A20: 大渡口不动产登记中心法务 | B20: 李潇 | C20: 1150900103417 | D20: 111 | E20: 109 | G20: 220 | H20: 36.67 | I20: 5
A21: 大渡口不动产登记中心法务 | B21: 吴旭菁 | C21: 1150900300506 | D21: 110.5 | E21: 106 | G21: 216.5 | H21: 36.08 | I21: 6
A22: 合川区不动产登记事务中心地籍调查 | B22: 杨俊 | C22: 2150901108317 | D22: 108.5 | E22: 102.5 | F22: 65 | G22: 276 | H22: =ROUND(((D22+E22)/3*0.4+F22*0.2),2) -> 41.13 | I22: 1
A23: 合川区不动产登记事务中心地籍调查 | B23: 程政涛 | C23: 2150901108110 | D23: 114 | E23: 112 | F23: 52.5 | G23: 278.5 | H23: 40.63 | I23: 2
A24: 合川区不动产登记事务中心地籍调查 | B24: 唐思诗 | C24: 2150901107303 | D24: 107 | E24: 102.5 | F24: 59 | G24: 268.5 | H24: 39.73 | I24: 3
A25: 合川区不动产登记事务中心地籍调查 | B25: 喻子龙 | C25: 2150901107907 | D25: 109 | E25: 100 | F25: 56.5 | G25: 265.5 | H25: 39.17 | I25: 4
A26: 合川区不动产登记事务中心地籍调查 | B26: 王虹引 | C26: 2150901108308 | D26: 107 | E26: 100.5 | F26: 56.5 | G26: 264 | H26: 38.97 | I26: 5
A27: 合川区不动产登记事务中心地籍调查 | B27: 殷大鑫 | C27: 2150901108028 | D27: 107.5 | E27: 94 | F27: 57.5 | G27: 259 | H27: 38.37 | I27: 6
A28: 合川区地质矿产管理所自然资源管理 | B28: 李若瞳 | C28: 2150901108210 | D28: 115 | E28: 110.5 | F28: 50.5 | G28: 276 | H28: 40.17 | I28: 1
A29: 合川区地质矿产管理所自然资源管理 | B29: 余金峰 | C29: 2150901108318 | D29: 111 | E29: 87.5 | F29: 62 | G29: 260.5 | H29: 38.87 | I29: 2
A30: 合川区地质矿产管理所自然资源管理 | B30: 张柳 | C30: 2150901107713 | D30: 90.5 | E30: 102 | F30: 66 | G30: 258.5 | H30: 38.87 | I30: 2
A31: 江津区不动产登记中心财务管理 | B31: 李黎 | C31: 1150900402218 | D31: 112.5 | E31: 105 | G31: 217.5 | H31: =ROUND((D31+E31)/3*0.5,2) -> 36.25 | I31: 1
A32: 江津区不动产登记中心财务管理 | B32: 李梦蕾 | C32: 1150900102306 | D32: 116.5 | E32: 98.5 | G32: 215 | H32: 35.83 | I32: 2
A33: 江津区不动产登记中心财务管理 | B33: 颜钰婷 | C33: 1150900101329 | D33: 100 | E33: 111 | G33: 211 | H33: 35.17 | I33: 3
A34: 江津区不动产登记中心法务 | B34: 庞璐 | C34: 1150900303119 | D34: 105 | E34: 108.5 | G34: 213.5 | H34: 35.58 | I34: 1
A35: 江津区不动产登记中心法务 | B35: 李姗蔓 | C35: 1150900201318 | D35: 106 | E35: 106 | G35: 212 | H35: 35.33 | I35: 2
A36: 江津区不动产登记中心法务 | B36: 谭宸 | C36: 1150900404114 | D36: 104.5 | E36: 107 | G36: 211.5 | H36: 35.25 | I36: 3
A37: 江津区不动产登记中心土地资源管理 | B37: 孟腾飞 | C37: 2150901107230 | D37: 95 | E37: 113.5 | F37: 65.5 | G37: 274 | H37: =ROUND(((D37+E37)/3*0.4+F37*0.2),2) -> 40.90 | I37: 1
A38: 江津区不动产登记中心土地资源管理 | B38: 毛滟滟 | C38: 2150901107525 | D38: 113 | E38: 110 | F38: 54.5 | G38: 277.5 | H38: 40.63 | I38: 2
A39: 江津区不动产登记中心土地资源管理 | B39: 吴铜 | C39: 2150901107527 | D39: 107.5 | E39: 106.5 | F39: 60 | G39: 274 | H39: 40.53 | I39: 3
A40: 江津区不动产登记中心土地资源管理 | B40: 陈茜 | C40: 2150901107510 | D40: 101.5 | E40: 118.5 | F40: 54 | G40: 274 | H40: 40.13 | I40: 4
A41: 江津区不动产登记中心土地资源管理 | B41: 李光璐 | C41: 2150901108206 | D41: 110.5 | E41: 111.5 | F41: 52.5 | G41: 274.5 | H41: 40.10 | I41: 5
A42: 江津区不动产登记中心土地资源管理 | B42: 卢江芳 | C42: 2150901108105 | D42: 107 | E42: 99.5 | F42: 62.5 | G42: 269 | H42: 40.03 | I42: 6
A43: 江津区不动产登记中心信息技术 | B43: 牟胜杰 | C43: 1150900102707 | D43: 117 | E43: 102 | G43: 219 | H43: =ROUND((D43+E43)/3*0.5,2) -> 36.5 | I43: 1
A44: 江津区不动产登记中心信息技术 | B44: 梁雨晨 | C44: 1150900401521 | D44: 114.5 | E44: 98 | G44: 212.5 | H44: 35.42 | I44: 2
A45: 江津区不动产登记中心信息技术 | B45: 霍星 | C45: 1150900102627 | D45: 109.5 | E45: 102.5 | G45: 212 | H45: 35.33 | I45: 3
A46: 江津区规划管理中心规划管理 | B46: 王雷雷 | C46: 3150901108912 | D46: 108.5 | E46: 107.5 | F46: 56 | G46: 272 | H46: =ROUND(((D46+E46)/3*0.4+F46*0.2),2) -> 40.00 | I46: 1
A47: 江津区规划管理中心规划管理 | B47: 舒慧茹 | C47: 3150901108913 | D47: 90 | E47: 105.5 | F47: 62.5 | G47: 258 | H47: 38.57 | I47: 2
A48: 江津区规划管理中心规划管理 | B48: 林奕莹 | C48: 3150901109218 | D48: 98 | E48: 99 | F48: 60.5 | G48: 257.5 | H48: 38.37 | I48: 3
A49: 南川区地质环境监测站地灾防治 | B49: 杨鹏 | C49: 1150900102417 | D49: 100 | E49: 84 | G49: 184 | H49: =ROUND((D49+E49)/3*0.5,2) -> 30.67 | I49: 1
A50: 南川区地质环境监测站地灾防治 | B50: 邓萌文 | C50: 1150900102902 | D50: 86.5 | E50: 93.5 | G50: 180 | H50: 30 | I50: 2
A51: 南川区地质环境监测站地灾防治 | B51: 郑磊 | C51: 1150900301117 | D51: 87.5 | E51: 91 | G51: 178.5 | H51: 29.75 | I51: 3
A52: 南川区地质环境监测站地灾防治 | B52: 李筱婧 | C52: 1150900402605 | D52: 87.5 | E52: 91 | G52: 178.5 | H52: 29.75 | I52: 3
A53: 沙坪坝规划和自然资源事务中心财务管理 | B53: 陈美霞 | C53: 1150900200616 | D53: 125 | E53: 110 | G53: 235 | H53: 39.17 | I53: 1
A54: 沙坪坝规划和自然资源事务中心财务管理 | B54: 陈雄 | C54: 1150900402623 | D54: 120.5 | E54: 107 | G54: 227.5 | H54: 37.92 | I54: 2
A55: 沙坪坝规划和自然资源事务中心财务管理 | B55: 王霜 | C55: 1150900202107 | D55: 107.5 | E55: 115 | G55: 222.5 | H55: 37.08 | I55: 3
A56: 沙坪坝规划和自然资源事务中心规划管理 | B56: 刘明林 | C56: 1150900103909 | D56: 115.5 | E56: 108 | G56: 223.5 | H56: 37.25 | I56: 1
A57: 沙坪坝规划和自然资源事务中心规划管理 | B57: 周洲 | C57: 1150900301709 | D57: 129 | E57: 90 | G57: 219 | H57: 36.5 | I57: 2
A58: 沙坪坝规划和自然资源事务中心规划管理 | B58: 王淑华 | C58: 1150900101018 | D58: 116 | E58: 103 | G58: 219 | H58: 36.5 | I58: 2
A59: 市地质环境监测总站水文地质调查评价 | B59: 王润 | C59: 3150901109418 | D59: 94 | E59: 99 | F59: 43 | G59: 236 | H59: =ROUND(((D59+E59)/3*0.4+F59*0.2),2) -> 34.33 | I59: 1
A60: 市地质环境监测总站水文地质调查评价 | B60: 董涛 | C60: 3150901109420 | D60: 84 | E60: 87 | F60: 45 | G60: 216 | H60: 31.80 | I60: 2
A61: 市地质环境监测总站水文地质调查评价 | B61: 李天朦 | C61: 3150901109419 | D61: 65 | E61: 83.5 | F61: 43 | G61: 191.5 | H61: 28.40 | I61: 3
A62: 市规划和自然资源档案馆地质资料管理 | B62: 阳航 | C62: 1150900301615 | D62: 113 | E62: 96.5 | G62: 209.5 | H62: =ROUND((D62+E62)/3*0.5,2) -> 34.92 | I62: 1
A63: 市规划和自然资源档案馆地质资料管理 | B63: 尹建 | C63: 1150900401726 | D63: 110 | E63: 92.5 | G63: 202.5 | H63: 33.75 | I63: 2
A64: 市规划和自然资源档案馆地质资料管理 | B64: 黎侃 | C64: 1150900303927 | D64: 103 | E64: 95 | G64: 198 | H64: 33 | I64: 3
A65: 市国土整治中心国土整治 | B65: 周聪 | C65: 3150901108711 | D65: 114.5 | E65: 114 | F65: 53 | G65: 281.5 | H65: =ROUND(((D65+E65)/3*0.4+F65*0.2),2) -> 41.07 | I65: 1
A66: 市国土整治中心国土整治 | B66: 李晓凤 | C66: 3150901108708 | D66: 105.5 | E66: 99.5 | F66: 57 | G66: 262 | H66: 38.73 | I66: 2
A67: 市国土整治中心国土整治 | B67: 周杰 | C67: 3150901108516 | D67: 102.5 | E67: 87 | F67: 63 | G67: 252.5 | H67: 37.87 | I67: 3
A68: 永川区不动产登记事务中心财务管理 | B68: 杨梦霖 | C68: 2150900603019 | D68: 113 | E68: 96.5 | G68: 209.5 | H68: =ROUND((D68+E68)/3*0.5,2) -> 34.92 | I68: 1
A69: 永川区不动产登记事务中心财务管理 | B69: 谭园湲 | C69: 2150901101104 | D69: 112 | E69: 96 | G69: 208 | H69: 34.67 | I69: 2
A70: 永川区不动产登记事务中心财务管理 | B70: 张琼丹 | C70: 2150900603930 | D70: 106.5 | E70: 100.5 | G70: 207 | H70: 34.5 | I70: 3
